fUSD/lending_fUSD_20260417
["ID","MTS","AMOUNT","RATE_DAILY","PERIOD"]
[420643960,1776411658146,800.0,9.002e-05,7]
[420643961,1776411701460,150.0,8.251e-05,2]
[420643962,1776411751815,200.0,8.071e-05,2]
[420643963,1776411771862,150.0,8.251e-05,2]
[420643964,1776411903575,-150.0,8.439e-05,2]
[420643965,1776411903600,-250.0,8.544e-05,2]
[420643966,1776411903626,-150.0,8.649e-05,2]
[420643967,1776411903650,-578.20924308,8.729e-05,2]
[420643968,1776411903675,-187.78006525,8.729e-05,2]
[420643969,1776411903701,-150.0,8.769e-05,2]
[420643970,1776411903727,-2500.0,8.9e-05,2]
[420643971,1776411903755,-1200.0,8.972e-05,2]
[420643972,1776411903779,-189.0,8.972e-05,2]
[420643973,1776411903804,-150.0,8.972e-05,2]
[420643974,1776411903829,-500.0,8.973e-05,2]
[420643975,1776411903853,-504.65209864,8.973e-05,2]
[420643976,1776411903875,-500.0,8.973e-05,2]
[420643977,1776411903898,-500.0,8.973e-05,2]
[420643978,1776411903923,-500.0,8.973e-05,2]
[420643979,1776411903946,-500.0,8.973e-05,2]
[420643980,1776411903968,-500.0,8.973e-05,2]
[420643981,1776411903992,-500.0,8.973e-05,2]
[420643982,1776411904016,-500.0,8.973e-05,2]
[420643983,1776411904039,-500.0,8.973e-05,2]
[420643984,1776411904062,-500.0,8.973e-05,2]
[420643985,1776411904085,-500.0,8.973e-05,2]
[420643986,1776411904108,-1374.502,8.973e-05,2]
[420643987,1776411904131,-174.489,8.973e-05,2]
[420643988,1776411904154,-8591.36759303,8.973e-05,2]
[420643989,1776411905122,150.0,8.251e-05,2]
[420643990,1776411937054,150.0,8.088e-05,2]
[420643991,1776411942834,504.68,8.927e-05,7]
[420643992,1776412099057,160.74,8.219e-05,2]
[420643993,1776412100479,150.0,8.257e-05,2]
[420643994,1776412168209,150.0,8.257e-05,2]
[420643995,1776412204200,161.0,5.851e-05,3]
[420643996,1776412206544,161.0,8.202e-05,3]
[420644002,1776412232117,150.0,8.257e-05,2]
[420644003,1776412232157,-150.0,8.452e-05,2]
[420644004,1776412232167,-150.0,8.537e-05,2]
[420644005,1776412232176,-88.27807364,8.655e-05,2]
[420644006,1776412232193,-99.50199161,8.655e-05,2]
[420644007,1776412232203,-604.22503791,8.7e-05,3]
[420644011,1776412232246,-395.77496209,8.7e-05,3]
[420644013,1776412232256,-150.0,8.752e-05,2]
[420644015,1776412232265,-2000.0,8.8e-05,3]
[420644017,1776412232274,-500.0,8.873e-05,2]
[420644019,1776412232283,-377.68539666,8.873e-05,2]
[420644020,1776412232292,-305.3792051,8.873e-05,2]
[420644022,1776412232301,-500.0,8.873e-05,2]
[420644023,1776412232310,-151.0,8.896e-05,2]
[420644024,1776412232320,-51.1568786,8.897e-05,2]
[420644025,1776412232348,166.66,8.219e-05,2]
[420644026,1776412232364,-436.91188442,8.897e-05,2]
[420644027,1776412232376,-711.93123698,8.897e-05,2]
[420644028,1776412232385,-500.0,8.898e-05,2]
[420644029,1776412232394,-500.0,8.898e-05,2]
[420644030,1776412232403,-197.81367532,8.898e-05,2]
[420644031,1776412232413,-500.0,8.898e-05,2]
[420644032,1776412232422,-235.0605841,8.898e-05,2]
[420644033,1776412232431,-190.22386765,8.898e-05,2]
[420644034,1776412232440,-500.0,8.898e-05,2]
[420644035,1776412232450,-500.0,8.898e-05,2]
[420644036,1776412232459,-617.6448903,8.898e-05,2]
[420644037,1776412232468,-500.0,8.898e-05,2]
[420644038,1776412232477,-500.0,8.898e-05,2]
[420644039,1776412232487,-500.0,8.898e-05,2]
[420644040,1776412232496,-500.0,8.898e-05,2]
[420644041,1776412232505,-500.0,8.898e-05,2]
[420644042,1776412232514,-500.0,8.898e-05,2]
[420644043,1776412232524,-500.0,8.898e-05,2]
[420644044,1776412232533,-500.0,8.898e-05,2]
[420644045,1776412232542,-500.0,8.898e-05,2]
[420644046,1776412232552,-500.0,8.898e-05,2]
[420644047,1776412232561,-500.0,8.898e-05,2]
[420644048,1776412232570,-500.0,8.898e-05,2]
[420644049,1776412232579,-500.0,8.898e-05,2]
[420644050,1776412232588,-500.0,8.898e-05,2]
[420644051,1776412232598,-500.0,8.898e-05,2]
[420644052,1776412232608,-500.0,8.898e-05,2]
[420644053,1776412232617,-500.0,8.898e-05,2]
[420644054,1776412232626,-500.0,8.898e-05,2]
[420644055,1776412232636,-500.0,8.898e-05,2]
[420644056,1776412232645,-500.0,8.898e-05,2]
[420644057,1776412232654,-500.0,8.898e-05,2]
[420644058,1776412232664,-500.0,8.898e-05,2]
[420644059,1776412232673,-500.0,8.898e-05,2]
[420644060,1776412232682,-500.0,8.898e-05,2]
[420644061,1776412232692,-500.0,8.898e-05,2]
[420644062,1776412232701,-500.0,8.898e-05,2]
[420644063,1776412232710,-500.0,8.898e-05,2]
[420644064,1776412232719,-500.0,8.898e-05,2]
[420644065,1776412232728,-500.0,8.898e-05,2]
[420644066,1776412232737,-500.0,8.898e-05,2]
[420644067,1776412232747,-500.0,8.898e-05,2]
[420644068,1776412232756,-500.0,8.898e-05,2]
[420644069,1776412232765,-500.0,8.898e-05,2]
[420644070,1776412232774,-500.0,8.898e-05,2]
[420644071,1776412232783,-500.0,8.898e-05,2]
[420644072,1776412232793,-500.0,8.898e-05,2]
[420644073,1776412232802,-500.0,8.898e-05,2]
[420644074,1776412232811,-500.0,8.898e-05,2]
[420644075,1776412232820,-500.0,8.898e-05,2]
[420644076,1776412232829,-500.0,8.898e-05,2]
[420644077,1776412232839,-500.0,8.898e-05,2]
[420644078,1776412232849,-639.6186449,8.898e-05,2]
[420644079,1776412232858,-500.0,8.898e-05,2]
[420644080,1776412232868,-500.0,8.898e-05,2]
[420644081,1776412232877,-500.0,8.898e-05,2]
[420644082,1776412232886,-500.0,8.898e-05,2]
[420644083,1776412232896,-500.0,8.898e-05,2]
[420644084,1776412232905,-500.0,8.898e-05,2]
[420644085,1776412232915,-500.0,8.898e-05,2]
[420644086,1776412232924,-500.0,8.898e-05,2]
[420644087,1776412232933,-500.0,8.898e-05,2]
[420644088,1776412232942,-500.0,8.898e-05,2]
[420644089,1776412232951,-500.0,8.898e-05,2]
[420644090,1776412232960,-500.0,8.898e-05,2]
[420644091,1776412232969,-250.0,8.898e-05,2]
[420644092,1776412232979,-500.0,8.898e-05,2]
[420644093,1776412232988,-500.0,8.898e-05,2]
[420644094,1776412232997,-500.0,8.898e-05,2]
[420644095,1776412233007,-500.0,8.898e-05,2]
[420644096,1776412233016,-500.0,8.898e-05,2]
[420644097,1776412233026,-500.0,8.898e-05,2]
[420644098,1776412233039,-199856.27262004,8.899e-05,2]
[420644099,1776412233051,-12534.56470345,8.899e-05,2]
[420644101,1776412238025,-166.66,8.49e-05,2]
[420644102,1776412238036,-166.66,8.762e-05,2]
[420644103,1776412238047,-50147.63308231,8.899e-05,2]
[420644104,1776412238059,-42357.35242812,8.899e-05,2]
[420644105,1776412238129,-323.06781623,8.899e-05,2]
[420644106,1776412238183,-357.39631745,8.899e-05,2]
[420644107,1776412238284,-1086.8797393,8.899e-05,2]
[420644132,1776412240025,-901.67907922,8.899e-05,2]
[420644133,1776412240038,-2271.31682705,8.899e-05,2]
[420644134,1776412240083,-750.0,8.899e-05,2]
[420644135,1776412240095,-2126.84206322,8.899e-05,2]
[420644136,1776412240108,-483.65945066,8.899e-05,2]
[420644137,1776412240119,-862.91952571,8.899e-05,2]
[420644138,1776412240141,-1000.49446978,8.899e-05,2]
[420644139,1776412240197,-1015.96867818,8.899e-05,2]
[420644140,1776412240258,-258.117,8.899e-05,2]
[420644150,1776412242437,-1655.35490122,8.899e-05,2]
[420644156,1776412243428,-749.81,8.899e-05,2]
[420644159,1776412245887,-13669.6498,8.899e-05,2]
[420644160,1776412246424,-5000.0,8.899e-05,2]
[420644161,1776412246436,-901.97472321,8.899e-05,2]
[420644162,1776412246458,-8256.93446698,8.899e-05,2]
[420644163,1776412246469,-10995.533306,8.899e-05,2]
[420644300,1776412362682,9211.35,8.011e-05,2]
[420644301,1776412362707,3621.44,8.011e-05,2]
[420644302,1776412388714,430.0,8.011e-05,3]
[420644303,1776412395099,162.0,8.011e-05,3]
[420644304,1776412410148,500.0,0.000165,30]
[420644305,1776412457630,-300.0,8.798e-05,2]
[420644306,1776412457650,-3316.9692,8.799e-05,2]
[420644307,1776412457670,-6383.0308,8.799e-05,2]
[420644308,1776412457873,-10000.0,8.799e-05,2]
[420644309,1776412457954,-5858.4361,8.799e-05,2]
[420644310,1776412457974,-150.0,8.877e-05,2]
[420644311,1776412457996,-3991.5639,8.878e-05,2]
[420644312,1776412458030,-10000.0,8.878e-05,2]
[420644313,1776412458225,-10000.0,8.878e-05,2]
[420644314,1776412460149,-500.0,8.877e-05,2]
[420644315,1776412460174,-500.0,8.877e-05,2]
[420644316,1776412460198,-500.0,8.877e-05,2]
[420644317,1776412460222,-500.0,8.877e-05,2]
[420644318,1776412460248,-288.96186449,8.877e-05,2]
[420644319,1776412460275,-500.0,8.877e-05,2]
[420644320,1776412460299,-500.0,8.877e-05,2]
[420644321,1776412460324,-500.0,8.877e-05,2]
[420644322,1776412460348,-6211.03813551,8.878e-05,2]
[420644323,1776412460411,-10000.0,8.878e-05,2]
[420644324,1776412462080,-10000.0,8.878e-05,2]
[420644325,1776412463078,-10000.0,8.878e-05,2]
[420644327,1776412506976,-500.0,8.352e-05,2]
[420644328,1776412506998,-313.41770673,8.575e-05,2]
[420644329,1776412507022,-456.1532,8.799e-05,2]
[420644330,1776412507044,-1200.0,8.877e-05,2]
[420644331,1776412507066,-255.0,8.877e-05,2]
[420644332,1776412507088,-300.0,8.877e-05,2]
[420644333,1776412507109,-442.28541506,8.877e-05,2]
[420644334,1776412507130,-371.23397799,8.877e-05,2]
[420644335,1776412507151,-594.88155671,8.877e-05,2]
[420644336,1776412507174,-180.20122835,8.877e-05,2]
[420644337,1776412507200,-5952.82691516,8.878e-05,2]
[420644338,1776412507976,3169.726581,7.945e-05,2]
[420644339,1776412530308,-157.0,8.878e-05,3]
[420644340,1776412530332,-265.0,8.878e-05,2]
[420644341,1776412530354,-1178.0,8.878e-05,2]
[420644342,1776412543645,2000.0,8.219e-05,2]
[420644344,1776412606452,4238.283419,7.986e-05,2]
[420644345,1776412606475,4026.166581,7.986e-05,2]
[420644350,1776412644426,5973.843419,7.978e-05,2]
[420644351,1776412644451,4013.676581,7.978e-05,2]
[420644352,1776412684416,1189.31,7.963e-05,2]
[420644353,1776412694089,8515.38,7.963e-05,2]
[420644356,1776412721302,295.32,7.957e-05,2]
[420644357,1776412721326,2984.04,7.957e-05,2]
[420644360,1776412817737,2426.93,7.96e-05,2]
[420644362,1776412854561,-249.65126617,8.367e-05,7]
[420644366,1776412876860,150.0,8.276e-05,2]
[420644369,1776413015323,150.0,0.0001649,30]
[420644372,1776413032206,150.0,8.116e-05,2]
[420644373,1776413106955,150.0,8.186e-05,2]
[420644374,1776413107159,150.0,8.186e-05,2]
[420644375,1776413109481,150.0,8.186e-05,2]
[420644376,1776413114195,150.0,8.186e-05,2]
[420644377,1776413114391,150.0,8.186e-05,2]
[420644378,1776413114440,150.0,8.262e-05,2]
[420644379,1776413117129,150.0,8.186e-05,2]
[420644380,1776413117400,150.0,8.186e-05,2]
[420644381,1776413119580,150.0,8.186e-05,2]
[420644382,1776413119709,150.0,8.186e-05,2]
[420644383,1776413119746,150.0,8.287e-05,2]
[420644384,1776413123546,150.0,8.186e-05,2]
[420644385,1776413123594,150.0,8.262e-05,2]
[420644386,1776413125017,-150.0,8.338e-05,2]
[420644387,1776413125043,-58.04,8.338e-05,2]
[420644388,1776413126723,150.0,8.186e-05,2]
[420644389,1776413126828,150.0,8.186e-05,2]
[420644390,1776413129511,150.0,8.277e-05,2]
[420644391,1776413130012,201.29039859,8.186e-05,2]
[420644392,1776413137220,150.0,8.186e-05,2]
[420644393,1776413147798,400.0,8.299e-05,2]
[420644394,1776413148463,187.25,8.299e-05,2]
[420644395,1776413170401,150.0,8.3e-05,2]
[420644400,1776413394618,150.0,8.22e-05,2]
[420644401,1776413404402,161.0,6.159e-05,3]
[420644405,1776413432049,-91.96,8.338e-05,2]
[420644407,1776413432059,-150.54539045,8.338e-05,2]
[420644408,1776413432068,-250.0,8.338e-05,2]
[420644409,1776413432079,-258.0,8.338e-05,2]
[420644410,1776413432089,-150.0,8.368e-05,2]
[420644411,1776413432099,-150.0,8.388e-05,2]
[420644412,1776413432110,-150.0,8.414e-05,2]
[420644413,1776413432120,-150.0,8.414e-05,2]
[420644414,1776413432130,-150.0,8.459e-05,2]
[420644415,1776413432141,-150.0,8.489e-05,2]
[420644416,1776413432151,-150.0,8.489e-05,2]
[420644417,1776413432167,-150.0,8.489e-05,2]
[420644418,1776413432177,-150.0,8.55e-05,2]
[420644419,1776413432187,-150.0,8.565e-05,2]
[420644420,1776413432197,-150.0,8.565e-05,2]
[420644421,1776413432207,-1200.0,8.577e-05,2]
[420644422,1776413432217,-1200.0,8.577e-05,2]
[420644423,1776413432227,-300.0,8.577e-05,2]
[420644424,1776413432237,-500.0,8.578e-05,2]
[420644425,1776413432247,-500.0,8.578e-05,2]
[420644426,1776413432257,-500.0,8.578e-05,2]
[420644427,1776413432268,-226.12632182,8.578e-05,2]
[420644428,1776413432279,-400.0,8.578e-05,2]
[420644429,1776413432289,-187.25,8.578e-05,2]
[420644430,1776413432299,-150.0,8.578e-05,2]
[420644431,1776413432308,-150.0,8.591e-05,2]
[420644432,1776413432319,-164.13414401,8.597e-05,2]
[420644433,1776413432329,-302.0,8.599e-05,2]
[420644434,1776413432339,-232.0,8.606e-05,2]
[420644435,1776413432349,-150.0,8.641e-05,2]
[420644436,1776413432360,-150.0,8.641e-05,2]
[420644437,1776413432369,-150.0,8.641e-05,2]
[420644438,1776413432379,-150.0,8.641e-05,2]
[420644439,1776413432392,-150.0,8.641e-05,2]
[420644440,1776413432403,-150.0,8.641e-05,2]
[420644441,1776413432412,-150.0,8.641e-05,2]
[420644442,1776413432422,-33275.69855739,8.668e-05,2]
[420644444,1776413432435,-443.39958113,8.668e-05,2]
[420644447,1776413432455,-474.41347366,8.668e-05,2]
[420644451,1776413432582,-1270.55455868,8.668e-05,2]
[420644452,1776413432594,-1696.65997328,8.668e-05,2]
[420644454,1776413432623,-713.72724244,8.668e-05,2]
[420644455,1776413432731,-33966.52601342,8.668e-05,2]
[420644456,1776413432741,-2500.0,8.668e-05,2]
[420644457,1776413432751,-150.0,8.692e-05,2]
[420644458,1776413432762,-947.0,8.692e-05,5]
[420644459,1776413432772,-1200.0,8.7e-05,3]
[420644460,1776413432782,-150.0,8.717e-05,2]
[420644461,1776413432792,-150.0,8.717e-05,2]
[420644462,1776413432801,-150.0,8.717e-05,2]
[420644463,1776413432811,-376.66,8.718e-05,2]
[420644464,1776413432821,-184.92,8.719e-05,2]
[420644465,1776413432830,-208.04,8.725e-05,2]
[420644466,1776413432840,-150.0,8.732e-05,2]
[420644467,1776413432849,-502.34190409,8.743e-05,2]
[420644468,1776413432859,-500.0,8.743e-05,2]
[420644469,1776413432868,-171.2065889,8.743e-05,2]
[420644470,1776413432879,-500.0,8.743e-05,2]
[420644471,1776413432888,-500.0,8.743e-05,2]
[420644472,1776413432898,-500.0,8.767e-05,2]
[420644473,1776413432908,-287.14921246,8.767e-05,2]
[420644474,1776413432918,-500.0,8.767e-05,2]
[420644475,1776413432928,-500.0,8.767e-05,2]
[420644476,1776413432937,-500.0,8.767e-05,2]
[420644477,1776413432947,-500.0,8.767e-05,2]
[420644478,1776413432957,-500.0,8.767e-05,2]
[420644479,1776413432967,-500.0,8.767e-05,2]
[420644480,1776413432977,-500.0,8.767e-05,2]
[420644481,1776413432987,-500.0,8.767e-05,2]
[420644482,1776413432996,-500.0,8.767e-05,2]
[420644483,1776413433006,-500.0,8.767e-05,2]
[420644484,1776413433015,-482.42942475,8.767e-05,2]
[420644485,1776413433024,-500.0,8.767e-05,2]
[420644486,1776413433034,-500.0,8.767e-05,2]
[420644487,1776413433043,-500.0,8.767e-05,2]
[420644488,1776413433053,-500.0,8.767e-05,2]
[420644489,1776413433063,-500.0,8.767e-05,2]
[420644490,1776413433073,-500.0,8.767e-05,2]
[420644491,1776413433082,-500.0,8.767e-05,2]
[420644492,1776413433092,-500.0,8.767e-05,2]
[420644493,1776413433102,-500.0,8.767e-05,2]
[420644494,1776413433113,-500.0,8.767e-05,2]
[420644495,1776413433122,-500.0,8.767e-05,2]
[420644496,1776413433131,-500.0,8.767e-05,2]
[420644497,1776413433140,-500.0,8.767e-05,2]
[420644498,1776413433150,-500.0,8.767e-05,2]
[420644499,1776413433159,-500.0,8.767e-05,2]
[420644500,1776413433170,-500.0,8.767e-05,2]
[420644501,1776413433179,-500.0,8.767e-05,2]
[420644502,1776413433189,-500.0,8.767e-05,2]
[420644503,1776413433200,-500.0,8.767e-05,2]
[420644504,1776413433211,-500.0,8.767e-05,2]
[420644505,1776413433224,-500.0,8.767e-05,2]
[420644506,1776413433234,-500.0,8.767e-05,2]
[420644507,1776413433244,-500.0,8.767e-05,2]
[420644508,1776413433254,-500.0,8.767e-05,2]
[420644509,1776413433265,-500.0,8.767e-05,2]
[420644510,1776413433275,-500.0,8.767e-05,2]
[420644511,1776413433285,-500.0,8.767e-05,2]
[420644512,1776413433295,-500.0,8.767e-05,2]
[420644513,1776413433305,-500.0,8.767e-05,2]
[420644514,1776413433316,-500.0,8.767e-05,2]
[420644515,1776413433326,-500.0,8.767e-05,2]
[420644516,1776413433336,-500.0,8.767e-05,2]
[420644517,1776413433346,-500.0,8.767e-05,2]
[420644518,1776413433355,-500.0,8.767e-05,2]
[420644519,1776413433364,-500.0,8.767e-05,2]
[420644520,1776413433374,-500.0,8.767e-05,2]
[420644521,1776413433384,-500.0,8.767e-05,2]
[420644522,1776413433394,-500.0,8.767e-05,2]
[420644523,1776413433403,-500.0,8.767e-05,2]
[420644524,1776413433412,-500.0,8.767e-05,2]
[420644525,1776413433422,-500.0,8.767e-05,2]
[420644526,1776413433432,-500.0,8.767e-05,2]
[420644527,1776413433442,-209.82189663,8.767e-05,2]
[420644528,1776413433452,-500.0,8.767e-05,2]
[420644529,1776413433462,-300.0,8.767e-05,2]
[420644530,1776413433471,-200.0,8.768e-05,2]
[420644531,1776413433482,-200.0,8.768e-05,2]
[420644532,1776413433492,-200.0,8.768e-05,2]
[420644533,1776413433502,-200.0,8.768e-05,2]
[420644534,1776413433511,-200.0,8.768e-05,2]
[420644535,1776413433521,-200.0,8.768e-05,2]
[420644536,1776413433531,-250.0,8.768e-05,2]
[420644537,1776413433541,-74453.6154507,8.768e-05,2]
[420644547,1776413439472,-53994.03648213,8.768e-05,2]
[420644548,1776413439485,-42357.35242812,8.768e-05,2]
[420644549,1776413439631,-603.22941727,8.768e-05,2]
[420644550,1776413439643,-15349.64197296,8.768e-05,2]
[420644551,1776413439655,-7307.36609069,8.768e-05,2]
[420644552,1776413439685,-981.56,8.768e-05,2]
[420644553,1776413439793,-367.0,8.768e-05,2]
[420644554,1776413439847,-4204.72712516,8.768e-05,2]
[420644760,1776413442168,-1491.74939785,8.768e-05,2]
[420644767,1776413442220,-2347.53377692,8.768e-05,2]
[420645013,1776413444648,-5031.70543463,8.768e-05,2]
[420645014,1776413444660,-842.96228091,8.768e-05,2]
[420645015,1776413444683,-285418.53648383,8.768e-05,2]
[420645016,1776413444694,-10130.131732,8.768e-05,2]
[420645019,1776413444806,-359.09560151,8.768e-05,2]
[420645021,1776413446228,-474.19721144,8.743e-05,2]
[420645022,1776413446237,-6451.71706153,8.768e-05,2]
[420645023,1776413446279,-24172.91674081,8.768e-05,2]
[420645024,1776413446291,-187772.75912354,8.768e-05,2]
[420645029,1776413446337,-5455.4998462,8.768e-05,2]
[420645030,1776413446390,-12364.53458857,8.768e-05,2]
[420645037,1776413463156,1779.59,7.915e-05,2]
[420645038,1776413523827,150.0,8.22e-05,2]
[420645039,1776413527181,409.0,7.915e-05,3]
[420645040,1776413589327,150.0,8.22e-05,2]
[420645041,1776413590753,249.690294,8.178e-05,2]
[420645042,1776413636390,2006.86,8.219e-05,2]
[420645043,1776413648230,389.0,8.219e-05,3]
[420645044,1776413708370,369.0,8.219e-05,3]
[420645045,1776413771547,351.0,8.219e-05,3]
[420645046,1776413827631,333.0,8.219e-05,3]
[420645047,1776413887432,316.0,8.219e-05,3]
[420645049,1776413949743,301.0,8.219e-05,3]
[420645050,1776413962047,8997.66,7.774e-05,2]
[420645051,1776413964926,280.67,0.00016,30]
[420645052,1776413977734,280.66,0.00016,30]
[420645053,1776414003823,1600.0,7.786e-05,2]
[420645054,1776414009207,286.0,8.219e-05,3]
[420645055,1776414009260,157.0,8.219e-05,3]
[420645056,1776414069030,200.0,7.774e-05,2]
[420645057,1776414137232,327.72,7.768e-05,2]
[420645058,1776414141302,271.0,8.219e-05,3]
[420645059,1776414188518,258.0,8.219e-05,3]
[420645060,1776414312701,157.0,8.219e-05,3]
[420645061,1776414314958,150.0,8.186e-05,2]
[420645062,1776414315237,245.0,8.219e-05,3]
[420645063,1776414316214,150.0,8.186e-05,2]
[420645064,1776414317390,170.0,6.207e-05,2]
[420645065,1776414317593,170.0,6.983e-05,2]
[420645066,1776414318212,170.0,7.759e-05,2]
[420645067,1776414318547,150.0,8.186e-05,2]
[420645068,1776414322813,151.72396292,8.186e-05,2]
[420645069,1776414322893,152.88062368,8.186e-05,2]
[420645070,1776414322984,150.76784931,8.186e-05,2]
[420645071,1776414324296,150.0,8.186e-05,2]
[420645072,1776414328836,151.03186045,8.186e-05,2]
[420645073,1776414328891,151.06661037,8.186e-05,2]
[420645074,1776414337021,150.0,8.186e-05,2]
[420645075,1776414337284,254.3925733,8.186e-05,2]
[420645076,1776414337393,258.80296177,8.186e-05,2]
[420645077,1776414338816,150.0,8.186e-05,2]
[420645080,1776414347608,3929.05,7.733e-05,2]
[420645081,1776414365385,233.0,8.219e-05,3]
[420645082,1776414404544,2497.2935582,8.305e-05,2]
[420645083,1776414404571,7502.7064418,8.305e-05,2]
[420645084,1776414425751,221.0,8.219e-05,3]
[420645085,1776414495322,210.0,8.219e-05,3]
[420645086,1776414568140,151.95,8.219e-05,2]
[420645087,1776414608513,199.0,8.219e-05,3]
[420645097,1776414635078,-150.0,8.414e-05,2]
[420645098,1776414635088,-250.0,8.414e-05,2]
[420645099,1776414635098,-49.80508817,8.414e-05,2]
[420645100,1776414635133,-100.19491183,8.414e-05,2]
[420645101,1776414635143,-259.0,8.414e-05,2]
[420645102,1776414635153,-300.0,8.467e-05,2]
[420645103,1776414635163,-944.32266203,8.468e-05,2]
[420645104,1776414635190,-4769.00806274,8.468e-05,2]
[420645105,1776414635202,-444.97085954,8.468e-05,2]
[420645106,1776414635251,-58021.38371569,8.468e-05,2]
[420645107,1776414635262,-150.0,8.469e-05,2]
[420645108,1776414635273,-150.0,8.489e-05,2]
[420645109,1776414635282,-150.0,8.489e-05,2]
[420645110,1776414635292,-284.7249,8.518e-05,2]
[420645111,1776414635303,-170.0,8.534e-05,2]
[420645112,1776414635312,-500.0,8.543e-05,2]
[420645113,1776414635321,-500.0,8.543e-05,2]
[420645114,1776414635330,-500.0,8.543e-05,2]
[420645115,1776414635340,-500.0,8.543e-05,2]
[420645116,1776414635350,-578.20924308,8.543e-05,2]
[420645117,1776414635359,-171.6799549,8.561e-05,2]
[420645118,1776414635369,-1200.0,8.562e-05,2]
[420645119,1776414635378,-150.0,8.562e-05,2]
[420645120,1776414635387,-200.0,8.563e-05,2]
[420645121,1776414635398,-1280.88388878,8.563e-05,2]
[420645122,1776414635408,-646.65982734,8.563e-05,2]
[420645123,1776414635417,-500.0,8.563e-05,2]
[420645124,1776414635428,-500.0,8.563e-05,2]
[420645125,1776414635438,-500.0,8.563e-05,2]
[420645126,1776414635449,-500.0,8.563e-05,2]
[420645127,1776414635465,-500.0,8.563e-05,2]
[420645128,1776414635480,-500.0,8.563e-05,2]
[420645129,1776414635490,-201.88453134,8.563e-05,2]
[420645130,1776414635499,-500.0,8.563e-05,2]
[420645131,1776414635509,-174.61919141,8.563e-05,2]
[420645132,1776414635519,-500.0,8.563e-05,2]
[420645133,1776414635529,-157.85100843,8.563e-05,2]
[420645134,1776414635538,-500.0,8.563e-05,2]
[420645135,1776414635549,-500.0,8.563e-05,2]
[420645136,1776414635558,-500.0,8.563e-05,2]
[420645137,1776414635568,-500.0,8.563e-05,2]
[420645138,1776414635577,-611.49090799,8.563e-05,2]
[420645139,1776414635587,-743.50770149,8.563e-05,2]
[420645140,1776414635596,-8565.75555911,8.563e-05,2]
[420645141,1776414635607,-211.40802048,8.563e-05,2]
[420645142,1776414635616,-219.23011724,8.563e-05,2]
[420645143,1776414635626,-227.34163157,8.563e-05,2]
[420645144,1776414635635,-235.75327194,8.563e-05,2]
[420645145,1776414635645,-244.476143,8.563e-05,2]
[420645146,1776414635655,-253.52176029,8.563e-05,2]
[420645147,1776414635665,-621.78829552,8.563e-05,2]
[420645148,1776414635675,-262.90206542,8.563e-05,2]
[420645149,1776414635684,-272.62944185,8.563e-05,2]
[420645150,1776414635695,-282.71673119,8.563e-05,2]
[420645151,1776414635705,-170.02081701,8.563e-05,2]
[420645152,1776414635714,-288.27939362,8.563e-05,2]
[420645153,1776414635724,-500.0,8.568e-05,2]
[420645154,1776414635734,-1278.428,8.568e-05,2]
[420645155,1776414635744,-174.49007527,8.568e-05,2]
[420645156,1776414635754,-724.4,8.568e-05,2]
[420645157,1776414635763,-200.0,8.568e-05,2]
[420645158,1776414635773,-200.0,8.568e-05,2]
[420645159,1776414635782,-200.0,8.568e-05,2]
[420645160,1776414635792,-200.0,8.568e-05,2]
[420645161,1776414635801,-200.0,8.568e-05,2]
[420645162,1776414635811,-200.0,8.568e-05,2]
[420645163,1776414635821,-200.0,8.568e-05,2]
[420645164,1776414635831,-200.0,8.568e-05,2]
[420645165,1776414635840,-200.0,8.568e-05,2]
[420645166,1776414635850,-200.0,8.568e-05,2]
[420645167,1776414635865,-200.0,8.568e-05,2]
[420645168,1776414635875,-200.0,8.568e-05,2]
[420645169,1776414635885,-200.0,8.568e-05,2]
[420645170,1776414635895,-200.0,8.568e-05,2]
[420645171,1776414635904,-200.0,8.568e-05,2]
[420645172,1776414635914,-200.0,8.568e-05,2]